bitfinex/quotes_BTCUSD_20250716
["timestamp","ask_amount","ask_price","bid_price","bid_amount"]
[1752650457449,0.46523041,118370.0,118360.0,0.3448399]
[1752650457660,0.47367813,118370.0,118360.0,0.3448399]
[1752650457843,0.47367806,118370.0,118360.0,0.3448399]
[1752650458053,0.48212586,118370.0,118360.0,0.3448399]
[1752650459958,0.49057373,118370.0,118360.0,0.3448399]
[1752650460159,0.49057416,118370.0,118360.0,0.3448399]
[1752650460376,0.48212622,118370.0,118360.0,0.3448399]
[1752650461195,0.47367835,118370.0,118360.0,0.3448399]
[1752650461408,0.01924624,118370.0,118360.0,0.3448399]
[1752650461618,0.46323055,118370.0,118360.0,0.3448399]
[1752650462041,0.47167842,118370.0,118360.0,0.3448399]
[1752650462254,0.46323055,118370.0,118360.0,0.3448399]
[1752650462466,0.46173055,118370.0,118360.0,0.3448399]
[1752650463191,0.47017835,118370.0,118360.0,0.3448399]
[1752650463410,0.46173055,118370.0,118360.0,0.3448399]
[1752650464181,0.47017827,118370.0,118360.0,0.3448399]
[1752650465259,0.46173055,118370.0,118360.0,0.3448399]
[1752650465683,0.47017835,118370.0,118360.0,0.3448399]
[1752650466711,0.47215835,118370.0,118360.0,0.3448399]
[1752650467924,0.48060629,118370.0,118360.0,0.3448399]
[1752650468151,0.47215835,118370.0,118360.0,0.3448399]
[1752650468368,0.48060629,118370.0,118360.0,0.33639153]
[1752650468797,0.48855835,118370.0,118360.0,0.33639153]
[1752650469474,0.49700629,118370.0,118360.0,0.33639153]
[1752650469685,0.48855835,118370.0,118360.0,0.33639153]
[1752650470199,0.47215835,118370.0,118360.0,0.33639153]
[1752650471313,0.46371055,118370.0,118360.0,0.33639153]
[1752650473726,0.47215827,118370.0,118360.0,0.33639153]
[1752650474170,0.46371055,118370.0,118360.0,0.33639153]
[1752650475200,0.47215842,118370.0,118360.0,0.33639153]
[1752650475403,0.47215835,118370.0,118360.0,0.33639153]
[1752650477030,0.46371055,118370.0,118360.0,0.33639153]
[1752650477462,0.47215835,118370.0,118360.0,0.33639153]
[1752650478318,0.46371055,118370.0,118360.0,0.33639153]
[1752650478745,0.47215835,118370.0,118360.0,0.33639153]
[1752650478993,0.35208547,118370.0,118360.0,0.33639153]
[1752650479591,0.35208547,118370.0,118360.0,0.33639103]
[1752650479592,0.00844744,118370.0,118360.0,0.33639103]
[1752650479843,0.33435923,118370.0,118360.0,0.33639103]
[1752650480137,0.35125418,118370.0,118360.0,0.33639103]
[1752650481075,0.46268758,118370.0,118360.0,0.33639103]
[1752650482330,0.45424007,118370.0,118360.0,0.33639103]
[1752650483107,0.4711353,118370.0,118360.0,0.33639103]
[1752650483320,0.4731153,118370.0,118360.0,0.33639103]
[1752650483526,0.46466765,118370.0,118360.0,0.33639103]
[1752650486086,0.4731153,118370.0,118360.0,0.33639103]
[1752650486291,0.46466765,118370.0,118360.0,0.33639103]
[1752650486679,0.47311537,118370.0,118360.0,0.33639103]
[1752650487415,0.46466765,118370.0,118360.0,0.33639103]
[1752650489331,0.45622007,118370.0,118360.0,0.33639103]
[1752650489698,0.46466758,118370.0,118360.0,0.33639103]
[1752650489865,0.46268758,118370.0,118360.0,0.33639103]
[1752650490484,0.45424007,118370.0,118360.0,0.33639103]
[1752650492246,0.04879438,118380.0,118370.0,0.19430512]
[1752650492444,0.50502381,118380.0,118370.0,0.19430512]
[1752650492749,0.69086529,118380.0,118370.0,0.18585754]
[1752650492964,0.68241856,118380.0,118370.0,0.18585754]
[1752650493188,0.68241856,118380.0,118370.0,0.19430526]
[1752650493594,0.68241856,118380.0,118370.0,0.19530526]
[1752650493740,0.68241856,118380.0,118370.0,0.19830526]
[1752650494330,0.68241856,118380.0,118370.0,0.20675291]
[1752650494534,0.51347111,118380.0,118370.0,0.21520049]
[1752650494943,0.48952381,118380.0,118370.0,0.21520049]
[1752650495808,0.50602381,118380.0,118370.0,0.21520049]
[1752650496391,0.50568757,118380.0,118370.0,0.21520049]
[1752650496597,0.46467658,118380.0,118370.0,0.21520049]
[1752650496813,0.47312373,118380.0,118370.0,0.21520049]
[1752650497777,0.48157096,118380.0,118370.0,0.21520049]
[1752650497982,0.49737096,118380.0,118370.0,0.21520049]
[1752650499514,0.50522373,118380.0,118370.0,0.21520049]
[1752650499723,0.51367096,118380.0,118370.0,0.21520049]
[1752650500141,0.50522373,118380.0,118370.0,0.21520049]
[1752650500357,0.51367096,118380.0,118370.0,0.21520049]
[1752650500800,0.06787833,118380.0,118370.0,0.21520049]
[1752650501009,0.73654097,118380.0,118370.0,0.21520049]
[1752650501885,0.67909965,118380.0,118370.0,0.22015049]
[1752650502095,0.6959936,118380.0,118370.0,0.22015049]
[1752650502306,0.68754645,118380.0,118370.0,0.22015049]
[1752650505901,0.6959936,118380.0,118370.0,0.22015049]
[1752650506099,0.68754645,118380.0,118370.0,0.22015049]
[1752650506478,0.6959936,118380.0,118370.0,0.22015049]
[1752650507086,0.68754645,118380.0,118370.0,0.22015049]
[1752650507486,0.69599353,118380.0,118370.0,0.22015049]
[1752650508912,0.68555645,118380.0,118370.0,0.22015049]
[1752650509127,0.0002,118390.0,118380.0,0.19428891]
[1752650509341,0.0002,118390.0,118380.0,0.33844578]
[1752650509549,0.33453132,118390.0,118380.0,0.37054578]
[1752650509764,0.00864608,118390.0,118380.0,0.37054578]
[1752650509970,0.35142363,118390.0,118380.0,0.37054578]
[1752650510385,0.35142363,118390.0,118380.0,0.37454578]
[1752650511054,0.35142363,118390.0,118380.0,0.37554578]
[1752650511272,0.0002,118390.0,118380.0,0.37554578]
[1752650511494,0.0002,118390.0,118380.0,0.79438738]
[1752650511703,1.305e-05,118390.0,118380.0,0.79438738]
[1752650511927,1.305e-05,118390.0,118380.0,0.79638738]
[1752650512347,1.305e-05,118390.0,118380.0,0.79238738]
[1752650512560,1.305e-05,118390.0,118380.0,0.45805606]
[1752650512770,1.305e-05,118390.0,118380.0,0.79238738]
[1752650512980,1.305e-05,118390.0,118380.0,0.81757847]
[1752650513220,1.305e-05,118390.0,118380.0,0.48124715]
[1752650516904,0.44554519,118390.0,118380.0,0.36359687]
[1752650517704,1.305e-05,118390.0,118380.0,0.36359687]
[1752650518557,1.305e-05,118390.0,118380.0,0.37889687]
[1752650518763,1.305e-05,118390.0,118380.0,0.39439687]
[1752650519193,1.305e-05,118390.0,118380.0,0.36359687]
[1752650519410,0.4539912,118390.0,118380.0,0.23287687]
[1752650519624,0.51281045,118390.0,118380.0,0.32500877]
[1752650519824,0.50436387,118390.0,118380.0,0.33345564]
[1752650520058,0.51281038,118390.0,118380.0,0.33345564]
[1752650520678,0.51279733,118390.0,118380.0,0.33345564]
[1752650520883,0.52124391,118390.0,118380.0,0.33345564]
[1752650521096,0.69017773,118390.0,118380.0,0.33345564]
[1752650521518,0.50435132,118390.0,118380.0,0.33345564]
[1752650521948,0.68173115,118390.0,118380.0,0.32500877]
[1752650522176,0.0161,118400.0,118390.0,0.1942725]
[1752650522394,0.45417751,118400.0,118390.0,0.20775865]
[1752650522606,0.46262302,118400.0,118390.0,0.20775865]
[1752650522816,0.46262295,118400.0,118390.0,0.20775865]
[1752650523025,0.48150419,118400.0,118390.0,0.20775865]
[1752650523243,0.48158921,118400.0,118390.0,0.20775865]
[1752650523830,0.49003501,118400.0,118390.0,0.20775865]
[1752650524169,0.036057,118400.0,118390.0,0.21075865]
[1752650524381,0.48158914,118400.0,118390.0,0.21075865]
[1752650524815,0.48158914,118400.0,118390.0,0.21675865]
[1752650525247,0.49003494,118400.0,118390.0,0.21675865]
[1752650525435,0.49003487,118400.0,118390.0,0.21675865]
[1752650525893,0.48158914,118400.0,118390.0,0.21675865]
[1752650526412,0.036057,118400.0,118390.0,0.21675865]
[1752650526970,0.0445028,118400.0,118390.0,0.21675865]
[1752650527215,0.036057,118400.0,118390.0,0.21675865]
[1752650528515,0.0445028,118400.0,118390.0,0.21675865]
[1752650529477,0.036057,118400.0,118390.0,0.21675865]
[1752650531246,0.04450273,118400.0,118390.0,0.21675865]
[1752650531830,0.04450316,118400.0,118390.0,0.21675865]
[1752650532824,0.22932257,118400.0,118390.0,0.2083125]
[1752650533028,0.69135471,118400.0,118390.0,0.2032725]
[1752650533999,0.6829092,118400.0,118390.0,0.2032725]
[1752650534211,0.6854992,118400.0,118390.0,0.009]
[1752650534422,0.75411809,118400.0,118390.0,0.13964]
[1752650534862,0.75411809,118400.0,118390.0,0.009]
[1752650535067,0.30858595,118400.0,118390.0,0.30857318]
[1752650535285,0.75152809,118400.0,118390.0,0.30857318]
[1752650535491,0.75152809,118400.0,118390.0,0.13964]
[1752650535915,0.75411809,118400.0,118390.0,0.13964]
[1752650539361,0.75411809,118400.0,118390.0,0.009]
[1752650539640,5.87796944,118400.0,118390.0,0.009]
[1752650540714,6.21796944,118400.0,118390.0,0.003]
[1752650541002,0.35927969,118390.0,118380.0,8.668e-05]
[1752650541261,5.53927047,118390.0,118380.0,8.668e-05]
[1752650544418,5.54227047,118390.0,118380.0,8.668e-05]
[1752650544681,5.55681132,118390.0,118380.0,8.668e-05]
[1752650553280,5.55681132,118390.0,118350.0,0.06864301]
[1752650553281,0.67784608,118360.0,118350.0,0.06864301]
[1752650553510,0.89600636,118360.0,118350.0,0.06864301]
[1752650554645,0.89609134,118360.0,118350.0,0.06964301]
[1752650555119,0.4186592,118360.0,118350.0,0.07467301]
[1752650555332,0.86419134,118360.0,118350.0,0.07467301]
[1752650555792,0.86419134,118360.0,118350.0,0.07867301]
[1752650557050,0.86214134,118360.0,118350.0,0.07867301]
[1752650557284,0.86214134,118360.0,118350.0,0.01003]
[1752650559900,0.4166092,118360.0,118350.0,0.01003]
[1752650560096,0.86214134,118360.0,118350.0,0.01003]
[1752650561012,0.10249192,118360.0,118350.0,0.21131894]
[1752650561229,8.498e-05,118360.0,118350.0,0.68904924]
[1752650562085,0.00853313,118360.0,118350.0,0.68904924]
[1752650562291,8.498e-05,118360.0,118350.0,0.68904924]
[1752650562733,0.0085332,118360.0,118350.0,0.2435171]
[1752650562947,0.01698157,118360.0,118350.0,0.2435171]
[1752650563172,0.2028548,118360.0,118350.0,0.21816972]
[1752650563388,0.48785974,118360.0,118350.0,0.36566788]
[1752650563615,0.64838752,118360.0,118350.0,0.36566788]
[1752650563851,0.47096272,118360.0,118350.0,0.37411689]
[1752650564090,0.00853313,118360.0,118350.0,0.37411689]
[1752650564314,0.01698143,118360.0,118350.0,0.37411689]
[1752650564527,0.03387838,118360.0,118350.0,0.37411689]
[1752650564991,0.02542987,118360.0,118350.0,0.37411689]
[1752650565404,0.03387838,118360.0,118350.0,0.37411689]
[1752650566243,0.02542987,118360.0,118350.0,0.37411689]
[1752650566463,0.03387838,118360.0,118350.0,0.37411689]
[1752650567269,0.02542987,118360.0,118350.0,0.37411689]
[1752650567683,0.01698143,118360.0,118350.0,0.37411689]
[1752650568122,0.02542987,118360.0,118350.0,0.37411689]
[1752650568566,0.01698143,118360.0,118350.0,0.37411689]
[1752650568905,0.00853313,118360.0,118350.0,0.37411689]
[1752650569116,0.01698143,118360.0,118350.0,0.37411689]
[1752650569324,0.0254298,118360.0,118350.0,0.37411689]
[1752650569609,0.0254298,118360.0,118350.0,0.81964903]
[1752650570038,0.01698143,118360.0,118350.0,0.37411689]
[1752650571238,0.00853313,118360.0,118350.0,0.37411689]
[1752650571446,0.01698143,118360.0,118350.0,0.37411689]
[1752650572054,0.01698135,118360.0,118350.0,0.37411689]
[1752650572298,0.02542972,118360.0,118350.0,0.37411689]
[1752650572716,0.01698135,118360.0,118350.0,0.37411689]
[1752650573850,0.02542972,118360.0,118350.0,0.37411689]
[1752650574197,0.01698135,118360.0,118350.0,0.37411689]
[1752650575713,0.01698135,118360.0,118350.0,0.81964903]
[1752650576019,0.02542965,118360.0,118350.0,0.81964903]
[1752650576199,0.01698135,118360.0,118350.0,0.81964903]
[1752650576610,0.01698135,118360.0,118350.0,0.37411689]
[1752650577386,0.02542972,118360.0,118350.0,0.37411689]
[1752650579032,0.02542965,118360.0,118350.0,0.37411689]
[1752650579463,0.01698135,118360.0,118350.0,0.37411689]
[1752650579671,8.498e-05,118360.0,118350.0,0.37411689]
[1752650579855,0.0085332,118360.0,118350.0,0.37411689]
[1752650580271,0.01698157,118360.0,118350.0,0.37411689]
[1752650580483,0.0085332,118360.0,118350.0,0.37411689]
[1752650581415,0.01698157,118360.0,118350.0,0.37411689]
[1752650581775,0.0085332,118360.0,118350.0,0.37411689]
[1752650581978,0.01698157,118360.0,118350.0,0.37411689]
[1752650582331,0.02543008,118360.0,118350.0,0.37411689]
[1752650582541,0.01698157,118360.0,118350.0,0.37411689]
[1752650582750,0.02543008,118360.0,118350.0,0.37411689]
[1752650583085,0.01698157,118360.0,118350.0,0.37411689]
[1752650583302,0.02543008,118360.0,118350.0,0.37411689]
[1752650583953,0.01698157,118360.0,118350.0,0.37411689]
[1752650584251,0.0085332,118360.0,118350.0,0.37411689]
[1752650584733,0.01698157,118360.0,118350.0,0.37411689]
[1752650584931,0.0085332,118360.0,118350.0,0.37411689]
[1752650585134,0.01698164,118360.0,118350.0,0.37411689]
[1752650586185,0.0085332,118360.0,118350.0,0.37411689]
[1752650586691,0.01698157,118360.0,118350.0,0.37411689]
[1752650586915,0.0085332,118360.0,118350.0,0.37411689]
[1752650587114,8.498e-05,118360.0,118350.0,0.37411689]
[1752650589112,8.498e-05,118360.0,118350.0,0.81964903]
[1752650590118,0.00853313,118360.0,118350.0,0.81964903]
[1752650590420,8.498e-05,118360.0,118350.0,0.37411689]
[1752650590703,8.498e-05,118360.0,118350.0,0.81964903]
[1752650591278,0.0085332,118360.0,118350.0,0.81964903]
[1752650592379,0.01698157,118360.0,118350.0,0.81964903]
[1752650592818,0.02543008,118360.0,118350.0,0.81964903]
[1752650593025,0.02543008,118360.0,118350.0,0.70846004]
[1752650593248,0.01698157,118360.0,118350.0,0.70846004]
[1752650596898,0.0085332,118360.0,118350.0,0.70846004]
[1752650597311,0.01698157,118360.0,118350.0,0.70846004]
[1752650597551,0.0085332,118360.0,118350.0,0.70846004]
[1752650597753,0.00853313,118360.0,118350.0,0.70846004]
[1752650599375,8.498e-05,118360.0,118350.0,0.70846004]
[1752650599588,8.498e-05,118360.0,118350.0,1.12831347]
[1752650599832,6.14e-06,118360.0,118350.0,1.12831347]
[1752650600035,6.14e-06,118360.0,118350.0,0.79397032]
[1752650601534,6.14e-06,118360.0,118350.0,1.12831347]
[1752650602461,6.14e-06,118360.0,118350.0,1.12331347]
[1752650602939,6.14e-06,118360.0,118350.0,1.12931347]
[1752650603925,6.14e-06,118360.0,118350.0,1.13131347]
[1752650604522,6.14e-06,118360.0,118350.0,1.42551347]
[1752650604726,6.14e-06,118360.0,118350.0,1.09117032]
[1752650605770,6.14e-06,118360.0,118350.0,0.75682717]
[1752650605992,6.14e-06,118360.0,118350.0,1.09117032]
[1752650606218,6.14e-06,118360.0,118350.0,1.09105032]
[1752650606741,6.14e-06,118360.0,118350.0,1.06035032]
[1752650606971,6.14e-06,118360.0,118350.0,0.72600717]
[1752650608759,6.14e-06,118360.0,118350.0,1.17179312]
[1752650609793,0.0577431,118370.0,118360.0,0.19432153]
[1752650610000,0.0597231,118370.0,118360.0,0.32480153]
[1752650610252,0.06817104,118370.0,118360.0,0.32798153]
[1752650610836,0.06817104,118370.0,118360.0,0.32996153]
[1752650611048,0.06817104,118370.0,118360.0,0.33096153]
[1752650611340,0.0597231,118370.0,118360.0,0.33096153]
[1752650611582,0.0436231,118370.0,118360.0,0.33496153]
[1752650612415,0.05207104,118370.0,118360.0,0.33496153]
[1752650612623,0.0436231,118370.0,118360.0,0.33496153]
[1752650612833,0.02672758,118370.0,118360.0,0.33496153]
[1752650613013,0.02474758,118370.0,118360.0,0.33496153]
[1752650613315,0.0331953,118370.0,118360.0,0.33496153]
[1752650613556,0.04164324,118370.0,118360.0,0.33496153]
[1752650613869,0.0331953,118370.0,118360.0,0.33496153]
[1752650615718,0.04164317,118370.0,118360.0,0.33496153]
[1752650616847,0.0331953,118370.0,118360.0,0.33496153]
[1752650617631,0.0416431,118370.0,118360.0,0.33496153]
[1752650618016,0.05009104,118370.0,118360.0,0.33496153]
[1752650618234,0.24360078,118370.0,118360.0,0.33496153]
[1752650618429,0.24558078,118370.0,118360.0,0.33496153]
[1752650618638,0.07661905,118370.0,118360.0,0.33496153]
[1752650618802,0.07661905,118370.0,118360.0,0.33492153]
[1752650619805,0.07661905,118370.0,118360.0,0.20448153]
[1752650620016,0.24558078,118370.0,118360.0,0.33492153]
[1752650620224,0.07661905,118370.0,118360.0,0.19603323]
[1752650620456,0.22868548,118370.0,118360.0,0.32647323]
[1752650620852,0.22868548,118370.0,118360.0,0.33492167]
[1752650621457,0.22868548,118370.0,118360.0,0.34337004]
[1752650621700,0.23713356,118370.0,118360.0,0.34337004]
[1752650621894,0.05127538,118370.0,118360.0,0.35181834]
[1752650622134,0.05972332,118370.0,118360.0,0.35181834]
[1752650622633,0.06817133,118370.0,118360.0,0.35181834]
[1752650622863,0.23713356,118370.0,118360.0,0.32647323]
[1752650623016,0.22868576,118370.0,118360.0,0.31286472]
[1752650623542,0.22868576,118370.0,118360.0,0.32976195]
[1752650623840,0.22868576,118370.0,118360.0,0.33821046]
[1752650624255,0.22868576,118370.0,118360.0,0.3466589]
[1752650624473,0.22868576,118370.0,118360.0,0.33821018]
[1752650625020,0.22868576,118370.0,118360.0,0.32976174]
[1752650626261,0.22868576,118370.0,118360.0,0.33294174]
[1752650626482,0.22868576,118370.0,118360.0,0.34983855]
[1752650626936,0.22868576,118370.0,118360.0,0.32449323]
[1752650627360,0.22023782,118370.0,118360.0,0.32449323]
[1752650628275,0.22023782,118370.0,118360.0,0.33294174]
[1752650628781,0.22023782,118370.0,118360.0,0.32449323]
[1752650629002,0.22023782,118370.0,118360.0,0.31604465]
[1752650629465,0.22023782,118370.0,118360.0,0.32449323]
[1752650629678,0.22023782,118370.0,118360.0,0.33294174]
[1752650630251,0.22023782,118370.0,118360.0,0.32976174]
[1752650630455,0.53767227,118370.0,118360.0,0.304376]
[1752650631189,0.53767227,118370.0,118360.0,0.31282472]
[1752650632068,0.53767227,118370.0,118360.0,0.32127352]
[1752650632278,0.53767227,118370.0,118360.0,0.32972217]
[1752650632833,0.20334173,118370.0,118360.0,0.32972217]
[1752650633044,0.20334173,118370.0,118360.0,0.33817075]
[1752650633468,0.53767227,118370.0,118360.0,0.33817075]
[1752650633948,0.53767227,118370.0,118360.0,0.32127352]
[1752650634174,0.20334173,118370.0,118360.0,0.32127352]
[1752650634392,0.20334173,118370.0,118360.0,0.32972217]
[1752650634967,0.53767227,118370.0,118360.0,0.32972217]
[1752650635704,0.53767227,118370.0,118360.0,0.32127352]
[1752650636908,0.52157227,118370.0,118360.0,0.34333075]
[1752650637121,0.52157227,118370.0,118360.0,0.33488217]
[1752650638106,0.18724173,118370.0,118360.0,0.33488217]
[1752650638314,0.52157227,118370.0,118360.0,0.34333068]
[1752650639365,0.52157227,118370.0,118360.0,0.33488217]
[1752650639578,0.52157227,118370.0,118360.0,0.34333075]
[1752650640611,0.52157227,118370.0,118360.0,0.35177926]
[1752650641514,0.18724173,118370.0,118360.0,0.35177926]
[1752650641731,0.53002028,118370.0,118360.0,0.35177926]
[1752650641947,0.53002028,118370.0,118360.0,0.3517789]
[1752650642278,0.19568974,118370.0,118360.0,0.3517789]
[1752650642486,0.54691616,118370.0,118360.0,0.3517789]
[1752650642667,0.54691616,118370.0,118360.0,0.34333046]
[1752650643436,0.21258562,118370.0,118360.0,0.3517789]
[1752650643659,0.01689545,118370.0,118360.0,0.35173848]
[1752650643839,0.37656959,118370.0,118360.0,0.35173848]
[1752650644438,0.53708374,118370.0,118360.0,0.34329018]
[1752650645042,0.52863609,118370.0,118360.0,0.33484174]
[1752650645452,0.53062609,118370.0,118360.0,0.32639323]
[1752650645665,0.21149555,118370.0,118360.0,0.32639323]
[1752650646054,0.54582609,118370.0,118360.0,0.34329018]
[1752650646777,0.54582609,118370.0,118360.0,0.35173855]
[1752650647019,0.54582609,118370.0,118360.0,0.34329018]
[1752650648066,0.54582609,118370.0,118360.0,0.33484174]
[1752650650098,0.21149555,118370.0,118360.0,0.33484174]
[1752650650307,0.54582609,118370.0,118360.0,0.33484174]
[1752650650990,0.54582609,118370.0,118360.0,0.19603323]
[1752650651198,0.54493028,118370.0,118360.0,0.304336]
[1752650651387,0.54493028,118370.0,118360.0,0.32123352]
[1752650652727,0.54493028,118370.0,118360.0,0.3127848]
[1752650652940,0.54493028,118370.0,118360.0,0.32123352]
[1752650653831,0.53648227,118370.0,118360.0,0.32123352]
[1752650655334,0.97345394,118370.0,118360.0,0.005]
[1752650655590,0.97345394,118370.0,118360.0,0.13532]
[1752650655803,0.6391234,118370.0,118360.0,0.13532]
[1752650656210,0.6391234,118370.0,118360.0,0.13432]
[1752650656211,0.97345394,118370.0,118360.0,0.13432]
[1752650657294,1.10377394,118370.0,118360.0,0.004]
[1752650657507,0.21032465,118360.0,118350.0,0.13032]
[1752650657725,0.88097573,118360.0,118350.0,0.13032]
[1752650658655,0.88097573,118360.0,118350.0,0.13132]
[1752650658854,0.88097573,118360.0,118350.0,0.13532]
[1752650659507,0.88097573,118360.0,118350.0,0.005]
[1752650659716,0.88356573,118360.0,118350.0,0.005]
[1752650661829,0.88097573,118360.0,118350.0,0.005]
[1752650662042,0.88097573,118360.0,118350.0,0.01344951]
[1752650662460,0.54664519,118360.0,118350.0,0.01344951]
[1752650662883,0.54664519,118360.0,118350.0,0.005]
[1752650663307,0.88097573,118360.0,118350.0,0.005]
[1752650663723,1.01129573,118360.0,118350.0,0.005]
[1752650667864,0.34263465,118360.0,118350.0,0.005]
[1752650668081,1.01129573,118360.0,118350.0,0.005]
[1752650669379,1.01129573,118360.0,118350.0,0.17399028]
[1752650670367,1.01129573,118360.0,118350.0,0.005]
[1752650671057,1.01129573,118360.0,118350.0,0.17399028]
[1752650671273,1.01129573,118360.0,118350.0,0.005]
[1752650676940,1.01387573,118360.0,118350.0,0.005]
[1752650679795,1.11392686,118360.0,118350.0,0.005]
[1752650682325,0.44526578,118360.0,118350.0,0.005]
[1752650682540,1.11392686,118360.0,118350.0,0.005]
[1752650685722,1.13930986,118360.0,118350.0,0.005]
[1752650686385,1.13930986,118360.0,118350.0,0.004]
[1752650687245,0.18590451,118340.0,118330.0,0.1333]
[1752650687477,0.52223505,118340.0,118330.0,0.13533]
[1752650687687,0.85656559,118340.0,118330.0,0.00505]
[1752650688115,0.52223505,118340.0,118330.0,0.00505]
[1752650688574,0.52223505,118340.0,118330.0,0.01105]
[1752650689278,0.87176559,118340.0,118330.0,0.006]
[1752650689486,0.87176559,118340.0,118330.0,0.008]
[1752650689698,0.53743505,118340.0,118330.0,0.008]
[1752650690160,0.53743505,118340.0,118330.0,0.006]
[1752650690382,1.10205672,118340.0,118330.0,0.007]
[1752650690597,1.11993672,118340.0,118330.0,0.001]
[1752650691023,1.11993672,118340.0,118330.0,0.005]
[1752650692087,1.12840036,118340.0,118330.0,0.005]
[1752650692972,1.12582036,118340.0,118330.0,0.005]
[1752650693641,1.12382036,118340.0,118330.0,0.005]
[1752650695692,1.10852036,118340.0,118330.0,0.005]
[1752650698126,1.09332036,118340.0,118330.0,0.005]
[1752650698752,1.09531036,118340.0,118330.0,0.005]
[1752650707168,1.11071036,118340.0,118330.0,0.005]
[1752650709011,1.12571036,118340.0,118330.0,0.005]
[1752650710314,1.12830036,118340.0,118330.0,0.005]
[1752650711704,0.45963928,118340.0,118330.0,0.005]
[1752650711767,1.12830036,118340.0,118330.0,0.001]
[1752650712130,1.12830036,118340.0,118330.0,0.004]
[1752650712335,0.45963928,118340.0,118330.0,0.004]
[1752650712556,1.12830036,118340.0,118330.0,0.004]
[1752650712763,1.12830036,118340.0,118330.0,0.003]
[1752650713859,1.12930036,118340.0,118330.0,0.003]
[1752650714470,1.12671036,118340.0,118330.0,0.003]
[1752650717245,1.09631036,118340.0,118330.0,0.003]
[1752650717453,0.42764928,118340.0,118330.0,0.003]
[1752650717670,1.09631036,118340.0,118330.0,0.003]
[1752650718755,1.09183164,118340.0,118330.0,0.003]
[1752650719192,1.10743164,118340.0,118330.0,0.003]
[1752650721475,1.12283164,118340.0,118330.0,0.003]
[1752650722735,1.12542164,118340.0,118330.0,0.003]
[1752650723117,1.12522164,118340.0,118330.0,0.003]
[1752650723367,1.49531379,118340.0,118330.0,0.003]
[1752650723588,5.97333054,118340.0,118330.0,0.003]
[1752650726571,5.639,118340.0,118330.0,0.003]
[1752650727445,5.61513764,118340.0,118330.0,0.003]
[1752650729247,1.12522164,118340.0,118330.0,0.003]
[1752650729452,5.61513764,118340.0,118330.0,0.003]
[1752650731400,5.639,118340.0,118330.0,0.003]
[1752650733997,4.97033892,118340.0,118330.0,0.003]
[1752650734223,5.58166764,118340.0,118330.0,0.003]
[1752650734439,5.45150764,118340.0,118330.0,0.00504]
[1752650734689,5.57967764,118340.0,118330.0,0.00827]
[1752650734877,5.58166764,118340.0,118330.0,0.00827]
[1752650735591,5.58166764,118340.0,118330.0,0.003]
[1752650735774,5.59666764,118340.0,118330.0,0.003]
[1752650735922,5.62053,118340.0,118330.0,0.003]
[1752650736104,5.49037,118340.0,118330.0,0.003]
[1752650736316,5.62053,118340.0,118330.0,0.003]
[1752650736522,4.95186892,118340.0,118330.0,0.003]
[1752650736735,5.60553,118340.0,118330.0,0.003]
[1752650737842,5.62173,118340.0,118330.0,0.003]
[1752650738798,5.63733,118340.0,118330.0,0.003]
[1752650741634,1.147414,118340.0,118330.0,0.003]
[1752650741833,5.62173,118340.0,118330.0,0.003]
[1752650743883,5.58166764,118340.0,118330.0,0.003]
[1752650744122,5.58166764,118340.0,118330.0,0.00827]
[1752650744550,5.45150764,118340.0,118330.0,0.00827]
[1752650744732,5.58162764,118340.0,118330.0,0.00827]
[1752650749783,5.58162764,118340.0,118330.0,0.003]
[1752650750482,5.58162764,118340.0,118330.0,0.00827]
[1752650755313,5.59812764,118340.0,118330.0,0.003]
[1752650755512,5.95332764,118340.0,118330.0,0.003]
[1752650755739,6.04167726,118340.0,118330.0,0.003]
[1752650755934,1.44821164,118340.0,118330.0,0.003]
[1752650756157,5.92162764,118340.0,118330.0,0.003]
[1752650756740,5.94549,118340.0,118330.0,0.003]
[1752650757148,5.96189,118340.0,118330.0,0.003]
[1752650757607,5.94549,118340.0,118330.0,0.003]
[1752650761126,5.92162764,118340.0,118330.0,0.003]
[1752650761338,5.92162764,118340.0,118330.0,0.00601]
[1752650762185,5.12284656,118340.0,118330.0,0.00814]
[1752650762434,0.19088943,118340.0,118330.0,0.45206449]
[1752650762655,0.18243956,118340.0,118330.0,0.62108333]
[1752650762876,0.18243956,118340.0,118330.0,0.28675279]
[1752650763102,0.1784682,118340.0,118330.0,0.10928301]
[1752650763553,0.17000456,118340.0,118330.0,0.27830185]
[1752650763779,0.01789995,118340.0,118330.0,0.30365381]
[1752650763989,0.02634931,118340.0,118330.0,0.63798435]
[1752650764208,0.02634924,118340.0,118330.0,0.63798435]
[1752650764566,0.02634924,118340.0,118330.0,0.76806435]
[1752650764980,0.02634924,118340.0,118330.0,0.87966635]
[1752650765215,0.01789937,118340.0,118330.0,0.87966635]
[1752650765420,0.001,118340.0,118330.0,0.87966635]
[1752650766037,0.001,118340.0,118330.0,0.81102334]
[1752650767311,0.03379682,118350.0,118340.0,0.22725437]
[1752650767551,0.03379682,118350.0,118340.0,0.23239437]
[1752650767760,0.02534745,118350.0,118340.0,0.23239437]
[1752650769111,0.03379682,118350.0,118340.0,0.23239437]
[1752650769323,0.03379682,118350.0,118340.0,0.23739437]
[1752650769538,0.02534745,118350.0,118340.0,0.23739437]
[1752650769755,0.03379682,118350.0,118340.0,0.23739437]
[1752650770183,0.01689816,118350.0,118340.0,0.23739437]
[1752650770402,0.02534745,118350.0,118340.0,0.23739437]
[1752650770826,0.01689816,118350.0,118340.0,0.23739437]
[1752650771582,0.02534745,118350.0,118340.0,0.23739437]
[1752650771998,0.01689816,118350.0,118340.0,0.23739437]
[1752650774061,0.02534745,118350.0,118340.0,0.23739437]
[1752650775111,0.03379682,118350.0,118340.0,0.23739437]
[1752650775327,0.01689816,118350.0,118340.0,0.23739437]
[1752650775532,0.19448248,118360.0,118350.0,0.2174888]
[1752650775692,0.20293085,118360.0,118350.0,0.36107788]
[1752650775898,0.20293085,118360.0,118350.0,0.38690405]
[1752650776709,0.20393085,118360.0,118350.0,0.38690405]
[1752650777051,0.20393085,118360.0,118350.0,0.39190405]
[1752650777271,0.20293085,118360.0,118350.0,0.39190405]
[1752650777761,0.03395485,118360.0,118350.0,0.39190405]
[1752650778001,0.20293085,118360.0,118350.0,0.40035306]
[1752650778420,0.20293085,118360.0,118350.0,0.39190405]
[1752650778629,0.20293085,118360.0,118350.0,0.38345497]
[1752650778839,0.20293085,118360.0,118350.0,0.39190405]
[1752650779051,0.20293085,118360.0,118350.0,0.40035306]
[1752650779236,0.00849824,118370.0,118360.0,0.22612153]
[1752650779485,0.01694553,118370.0,118360.0,0.23126153]
[1752650779704,0.02539347,118370.0,118360.0,0.23126153]
[1752650780506,0.20380321,118370.0,118360.0,0.23126153]
[1752650781427,0.20380321,118370.0,118360.0,0.23526153]
[1752650782175,0.21225129,118370.0,118360.0,0.23526153]
[1752650782604,0.03484148,118370.0,118360.0,0.23526153]
[1752650783423,0.02639347,118370.0,118360.0,0.23526153]